[Event "1st FIDE Olympiad DIS 2023"]
[Site "Belgrade"]
[Date "2023.01.31"]
[Round "2.20"]
[White "Gomez Fernandez, Alfredo"]
[Black "Dima, Mihai"]
[Result "0-1"]
[ECO "B50"]
[WhiteElo "1760"]
[BlackElo "1948"]
[Annotator "TA"]
[PlyCount "54"]
[EventDate "2023.01.30"]
[EventType "team-tourn"]
[EventCountry "SRB"]
[SourceTitle "playchess.com"]
[Source "ChessBase"]
[SourceQuality "1"]
[WhiteTeam "Spain"]
[BlackTeam "Romania"]
[WhiteTeamCountry "ESP"]
[BlackTeamCountry "ROU"]
[TimeControl "40/5400+30:1800+30"]

{[%evp 9,54,-4,25,17,49,41,46,15,43,16,51,56,58,57,58,32,29,42,41,25,27,27,27,-38,-31,-35,-35,-35,-45,-37,-37,-28,-33,-56,-36,-61,-47,-69,-17,-37,16,0,22,-16,0,-925,-912]} 1. e4 {[%emt 0:00:08]} c5 {[%emt 0:02:33]} 2. Nf3 {[%emt 0:00:11]} Nc6 {[%emt 0:01:13]} 3. b3 {[%emt 0:00:29]} d6 {[%emt 0:03:16]} 4. Bb2 {[%emt 0:01:05]} Nf6 {[%emt 0:00:25]} 5. Nc3 {[%emt 0:01:11]} Bg4 {[%emt 0:01:41]} 6. h3 {[%emt 0:01:22] B50: Sicilian: 2...d6, Miscellaneous.} Bxf3 {[%emt 0:00:10]} 7. Qxf3 {[%emt 0:00:08] [#]} e6 $146 {[%emt 0:01:13]} ({Predecessor:} 7... Nd4 8. Qd1 g6 9. Nb5 Nc6 10. g4 a6 11. g5 axb5 12. gxf6 e5 13. Qf3 b4 {0-1 Guetas Sanchez,H (2131)-Veras Sanz,M (2044) Aragon-chT Preferente A 2017 (2.42)}) 8. Bb5 {[%emt 0:02:02] White is slightly better.} Qc7 {[%emt 0:01:29]} 9. O-O {[%emt 0:09:49][%cal Oc3d5] With the idea Nd5!} a6 {[%emt 0:01:17] [#]} 10. e5 $1 {[%emt 0:20:32]} dxe5 {[%emt 0:06:36]} 11. Bxc6+ {[%emt 0:00:29]} bxc6 {[%emt 0:00:49]} 12. Na4 {[%emt 0:06:50][%cal Ob2e5]} Bd6 {[%emt 0:01:50]} 13. Rfe1 {[%emt 0:02:17][%mdl 1024] White has compensation.} O-O {[%emt 0:00:40]} 14. Qe2 {[%emt 0:02:20][%cal Rb2e5]} Nd7 {[%emt 0:00:54]} 15. Qc4 {[%emt 0:02:54]} Rfe8 {[%emt 0:02:41]} 16. c3 {[%emt 0:06:48]} (16. Bc3 $11) 16... Nb6 $15 {[%emt 0:04:21]} 17. Nxb6 {[%emt 0:00:17]} Qxb6 {[%emt 0:00:22]} 18. d4 {[%emt 0:03:13]} exd4 {[%emt 0:00:40]} 19. cxd4 {[%emt 0:00:08]} cxd4 {[%emt 0:02:56]} 20. Bxd4 {[%emt 0:01:01]} Qb5 {[%emt 0:01:00]} 21. Qc2 {[%emt 0:02:51]} c5 {[%emt 0:02:22]} 22. Bb2 {[%emt 0:02:20]} Rac8 {[%emt 0:01:01]} 23. Rad1 {[%emt 0:01:03]} Bb8 {[%emt 0:04:03]} ({Better is} 23... Bf8 $15) 24. Re4 {[%emt 0:07:55]} f5 {[%emt 0:01:00]} (24... Rcd8 $15) 25. Rc4 {[%emt 0:01:24]} Rcd8 {[%emt 0:04:02]} 26. Rxd8 {[%emt 0:03:54]} (26. Rxc5 $2 {too greedy.} Qxc5 27. Qc1 Qxc1 28. Rxc1 Rd2 $19) 26... Rxd8 {[%emt 0:00:07]} 27. Rxc5 $2 {[%emt 0:01:49][%mdl 8192] [#]} (27. Qe2 $11 Qc6 28. g3) 27... Qxc5 $3 {[%emt 0:00:18][%mdl 576] Back Rank.   Weighted Error Value: White=0.45/Black=0.18 (very precise)} 0-1

[Event "1st FIDE Olympiad DIS 2023"]
[Site "Belgrade"]
[Date "2023.01.31"]
[Round "2.21"]
[White "Gora, Tapiwa"]
[Black "Bjelanovic, Mile"]
[Result "1/2-1/2"]
[ECO "B94"]
[WhiteElo "1959"]
[BlackElo "2021"]
[Annotator "TA"]
[PlyCount "160"]
[EventDate "2023.01.30"]
[EventType "team-tourn"]
[EventCountry "SRB"]
[SourceTitle "playchess.com"]
[Source "ChessBase"]
[SourceQuality "1"]
[WhiteTeam "Zimbabwe"]
[BlackTeam "Serbia"]
[WhiteTeamCountry "ZIM"]
[BlackTeamCountry "SRB"]
[TimeControl "40/5400+30:1800+30"]

{[%evp 13,160,0,22,0,0,3,22,0,0,0,0,-89,-68,-121,-110,-193,-97,-90,-87,-98,-110,-122,-111,-146,-146,-196,-183,-185,-195,-160,-75,-108,-93,-131,-121,-213,-215,-260,-259,-265,-183,-187,-144,-140,-111,-103,-95,-122,-27,-287,-297,-950,-101,-177,-143,-903,-894,-805,-877,-814,-391,-398,-398,-398,-391,-2785,-316,-321,-311,-311,-304,-295,-280,-257,-255,-393,-344,-517,-506,-504,-480,-1611,-1611,-866,-800,-12827,-12828,-12826,-9080,-12836,-12836,-12836,-12832,-12823,-532,-1141,-1085,-954,-837,-814,-490,-1144,-931,-12822,-12822,-12829,-12830,-12831,-12829,-12839,-12840,-12840,-12830,-12830,-12830,-12830,-12831,-12828,-12831,-12837,-12837,-12837,-12838,-12837,-12831,-12307,-1542,-12841,-12842,-12842,-12843,-12843,-12843,-12844,-12844,-12845,-12845,-12847,-12847,-12846,-12847,-12847,-12847,-12848,0,0,0,0,0]} 1. e4 {[%emt 0:00:13]} c5 {[%emt 0:00:14]} 2. Nf3 {[%emt 0:00:12]} d6 {[%emt 0:00:14]} 3. d4 {[%emt 0:00:10]} cxd4 {[%emt 0:00:16]} 4. Nxd4 {[%emt 0:00:19]} Nf6 {[%emt 0:00:13]} 5. Nc3 {[%emt 0:00:09]} a6 {[%emt 0:00:15]} 6. Bg5 {[%emt 0:00:11]} Nbd7 {[%emt 0:00:16]} 7. f4 {[%emt 0:00:12]} Qc7 {[%emt 0:00:16]} 8. Qf3 {[%emt 0:00:12] B94: Sicilian Najdorf: 6 Bg5 Nbd7.} b5 {[%emt 0:00:57][%cal Bb7b5,Bb5b4][%mdl 32]} 9. O-O-O {[%emt 0:00:22] Black should prevent Bxf6.} Bb7 {[%emt 0:00:13]} 10. Bd3 {[%emt 0:00:29]} g6 {[%emt 0:00:32]} 11. Rhe1 {[%emt 0:03:44]} Bg7 {[%emt 0:01:41]} 12. Qe2 {[%emt 0:11:18] [#]} (12. Nd5 $11 Qd8 13. Kb1) 12... b4 $146 {[%emt 0:14:52]} ({Predecessor:} 12... O-O 13. e5 b4 14. exf6 exf6 15. Ne6 fxe6 16. Qxe6+ Kh8 17. Bxg6 fxg5 18. Qh3 h6 {0-1 Agrest,I (2273)-Adair,J (2480) PRO League Central rapid 2017 (3)}) 13. Na4 {[%emt 0:15:46]} (13. Nd5 $15 Nxd5 14. exd5) 13... e5 {[%emt 0:04:07]} 14. Nf3 {[%emt 0:01:15]} (14. fxe5 $17 Nxe5 15. Kb1) 14... O-O {[%emt 0:01:12]} (14... Bc6 $1 $19 {[%cal Rc6a4]} 15. b3 Bxa4 {[%mdl 64] Remove Defender} 16. bxa4 (16. fxe5 $2 dxe5 17. bxa4 Nc5 $17) 16... Nc5) 15. fxe5 $17 {[%emt 0:02:16]} dxe5 {[%emt 0:01:12]} 16. b3 {[%emt 0:04:47]} Bc6 {[%emt 0:02:34]} 17. Nb2 {[%emt 0:05:03]} Nc5 {[%emt 0:09:18]} 18. Bxf6 {[%emt 0:02:32]} Bxf6 {[%emt 0:00:11]} 19. g4 {[%emt 0:00:23]} (19. Qe3 $17 Bb7 20. Kb1) 19... a5 $19 {[%emt 0:01:18]} 20. g5 {[%emt 0:01:24]} Bg7 {[%emt 0:00:36] This pair of bishops is nice.} 21. Qe3 {[%emt 0:07:58]} Ne6 {[%emt 0:08:25]} (21... Qe7 $142 {Hoping for ...a4.} 22. Nd2 a4 23. bxa4 Nxd3+ 24. Nxd3 Rxa4) 22. Bc4 {[%emt 0:01:01] [#]} a4 $1 {[%emt 0:12:32]} 23. Bxe6 {[%emt 0:15:39]} fxe6 {[%emt 0:00:12]} 24. Nd2 {[%emt 0:10:03]} (24. bxa4 $17 Bxa4 25. Nxa4) 24... axb3 {[%emt 0:06:11]} 25. Nxb3 {[%emt 0:05:13]} Rxa2 {[%emt 0:06:03]} 26. Qc5 {[%emt 0:01:13] Repels Bb5} Rc8 {[%emt 0:02:20]} 27. Kb1 {[%emt 0:03:21]} Bf8 {[%emt 0:03:08]} 28. Qc4 {[%emt 0:00:15]} Ra7 {[%emt 0:11:35] White must now prevent ...Qe7.} 29. Qxe6+ {[%emt 0:00:29]} Kh8 {[%emt 0:01:06][%cal Oc6e4] ...Bxe4! is the strong threat.} 30. Rd2 {[%emt 0:01:47]} Ra6 {[%emt 0:04:09]} ({Better is} 30... Re8 $17 31. Qf6+ Kg8) 31. Qc4 {[%emt 0:01:13][%mdl 8192]} (31. Nd3 $1 $11 {and White stays safe.}) 31... Rca8 {[%emt 0:00:37] Threatens to win with ...Qa7.} 32. Rd3 $2 {[%emt 0:05:11]} (32. Rdd1) 32... Qb6 $2 {[%emt 0:03:04]} (32... Qa7 $19 {[%cal Oa6a1] ( -> ...Ra1+!)} 33. Kc1 Qf2) 33. Qe6 {[%emt 0:00:50]} (33. Qf7 $17 {was worth a try.}) 33... Qf2 $40 {[%emt 0:02:54][%mdl 128] Black goes for the king.} 34. Qxe5+ $2 {[%emt 0:01:03][%mdl 8192]} (34. Qf6+ $17 Qxf6 35. gxf6) 34... Bg7 {[%emt 0:00:14]} 35. Qg3 {[%emt 0:00:05]} Qa7 {[%emt 0:00:54][%cal Oa6a1]} 36. Kc1 {[%emt 0:00:49] [#]} Ra1+ {[%emt 0:02:31]} 37. Nxa1 {[%emt 0:00:56]} Qxa1+ {[%emt 0:00:07]} 38. Kd2 {[%emt 0:00:01]} Qxb2 {[%emt 0:00:16]} 39. Rb3 $2 {[%emt 0:01:07]} (39. Qc7 Bc3+ {[%mdl 64] Deflection} 40. Ke3) 39... Bc3+ $2 {[%emt 0:01:05]} (39... Rd8+ 40. Rd3 Bc3+ {[%mdl 64] Skewer} 41. Ke3 Bd4+ 42. Rxd4 Qxd4+ 43. Kf3 Rf8+ {[%mdl 64] Deflection} 44. Kg4 Bxe4 45. Kh3 Rf3 46. Qxf3 Bxf3 47. Re8+ Kg7 48. Kg3 Qg4+ 49. Kf2 Qg2+ {[%mdl 64] Skewer, Double Attack} 50. Ke3 Qe2+ {[%mdl 64] Skewer} 51. Kd4 Qxe8 52. Kc5 Qc8+ 53. Kxb4 Be2 54. Kb3 Qc4+ 55. Ka3 Qb5 56. h3 Bd1 57. h4 Bxc2 58. Ka2 Qb3+ 59. Ka1 Qb1#) 40. Rxc3 {[%emt 0:00:03]} bxc3+ {[%emt 0:00:48]} 41. Qxc3+ {[%emt 0:30:02]} Qxc3+ {[%emt 0:30:20]} 42. Kxc3 {[%emt 0:00:02][%mdl 4096] Endgame KRB-KR} Kg7 {[%emt 0:01:20]} 43. Kd4 {[%emt 0:01:27]} Kf7 {[%emt 0:00:31] And now ...Ke6 would win.} 44. Kc5 {[%emt 0:00:00]} (44. Rf1+ $142 Ke7 45. c4) 44... Ba4 {[%emt 0:00:00]} 45. c4 {[%emt 0:00:00]} (45. Kd6 {is a better defense.} Bxc2 46. Re2) 45... Ke6 {[%emt 0:00:00]} 46. Kb6 {[%emt 0:00:00]} Rb8+ {[%emt 0:00:00]} 47. Kc7 {[%emt 0:00:00]} (47. Kc5 $142 Ke5 48. Ra1 Rc8+ 49. Kb4) 47... Rb4 {[%emt 0:00:00]} 48. c5 {[%emt 0:00:00]} Bc2 {[%emt 0:00:00]} 49. Re3 {[%emt 0:00:00]} Bxe4 {[%emt 0:00:00]} 50. Rc3 {[%emt 0:00:00]} Kf5 {[%emt 0:00:00]} 51. c6 {[%emt 0:00:00]} Kxg5 {[%emt 0:00:00]} 52. Kd8 {[%emt 0:00:00]} Rb8+ {[%emt 0:00:00]} 53. Ke7 {[%emt 0:00:00]} Rb2 {[%emt 0:00:00]} 54. h4+ {[%emt 0:00:00]} Kh6 {[%emt 0:00:00]} 55. c7 {[%emt 0:00:00]} Bf5 {[%emt 0:00:00]} 56. Rc4 {[%emt 0:00:00]} Ra2 {[%emt 0:00:00]} 57. Rc5 {[%emt 0:00:00]} (57. Kd6 $142 Rh2 58. Rb4) 57... Ra8 {[%emt 0:00:00] ...Kh5 would be deadly.} 58. Kf6 {[%emt 0:00:00]} Rc8 {[%emt 0:00:00]} 59. Kf7 {[%emt 0:00:00]} Kh5 {[%emt 0:00:00]} 60. Kg7 {[%emt 0:00:00]} h6 {[%emt 0:00:00]} 61. Rc4 {[%emt 0:00:00]} g5 {[%emt 0:03:01]} 62. Rc5 {[%emt 0:00:00]} Bh3 {[%emt 0:01:20]} 63. hxg5 {[%emt 0:00:00]} hxg5 {[%emt 0:00:09]} 64. Kf6 {[%emt 0:00:00]} Rf8+ {[%emt 0:00:20]} 65. Ke7 {[%emt 0:03:56]} Ra8 {[%emt 0:00:36]} 66. Kf6 {[%emt 0:00:39]} Ra6+ {[%emt 0:00:11]} 67. Ke7 {[%emt 0:00:50]} Bc8 {[%emt 0:00:52]} 68. Kd8 {[%emt 0:00:38]} Ra8 {[%emt 0:01:10]} 69. Ke7 {[%emt 0:00:12]} Kh4 {[%emt 0:00:46]} 70. Kf6 {[%emt 0:03:23]} g4 {[%emt 0:00:21][%cal Bg5g4,Bg4g3,Bg3g2][%mdl 32]} 71. Rc4 {[%emt 0:01:02]} Kh3 {[%emt 0:00:32]} 72. Rc1 {[%emt 0:01:08]} g3 {[%emt 0:00:16]} 73. Rh1+ {[%emt 0:00:04]} Kg2 {[%emt 0:01:46]} 74. Rh8 {[%emt 0:00:43]} Kf2 {[%emt 0:00:36]} 75. Ke5 {[%emt 0:00:24]} g2 {[%emt 0:01:40]} 76. Rf8+ {[%emt 0:00:06]} Ke3 {[%emt 0:01:49]} 77. Rg8 {[%emt 0:00:08]} Ra5+ {[%emt 0:00:45]} 78. Kd6 {[%emt 0:00:08]} Bb7 $2 {[%emt 0:00:50]} (78... Kf2 $19 79. Ke7 g1=Q 80. Rxg1 Kxg1 81. Kd8 Ra8 82. Ke8 Kf2 83. Kf8 Ke3 84. Ke7 Ke4 85. Kf6 Bf5 86. Ke7 Ke5 87. Kf7 Rh8 88. c8=B Rxc8 89. Ke7 Rc3 90. Kf7 Rc7+ 91. Kf8 Kf6 92. Kg8 Rc8#) 79. Rxg2 $11 {[%emt 0:00:55][%mdl 64] Deflection} Rd5+ {[%emt 0:00:21]} 80. Ke6 {[%emt 0:01:31] aiming for Rb2.} Rc5 {[%emt 0:00:28] Weighted Error Value: White=1.05/Black=0.57} 1/2-1/2

[Event "1st FIDE Olympiad DIS 2023"]
[Site "Belgrade"]
[Date "2023.01.31"]
[Round "2.22"]
[White "Mitrovic, Stefan"]
[Black "CHIKAFU, ONAI"]
[Result "1-0"]
[ECO "D36"]
[WhiteElo "1807"]
[BlackElo "1494"]
[Annotator "NA RC COMBH"]
[PlyCount "207"]
[EventDate "2023.01.30"]
[EventType "team-tourn"]
[EventCountry "SRB"]
[SourceTitle "playchess.com"]
[Source "ChessBase"]
[SourceQuality "1"]
[WhiteTeam "Serbia"]
[BlackTeam "Zimbabwe"]
[WhiteTeamCountry "SRB"]
[BlackTeamCountry "ZIM"]
[TimeControl "40/5400+30:1800+30"]

1. d4 {[%emt 0:00:04]} d5 {[%emt 0:00:37]} 2. c4 {[%emt 0:00:02]} Nf6 {[%emt 0:01:06]} 3. Nc3 {[%emt 0:00:06]} e6 {[%emt 0:00:34]} 4. cxd5 {[%emt 0:00:18]} exd5 {[%emt 0:00:55]} 5. Bg5 {[%emt 0:00:07]} Be7 {[%emt 0:00:38]} 6. e3 {[%emt 0:00:13]} c6 {[%emt 0:00:50]} 7. Bd3 {[%emt 0:00:16]} Nbd7 {[%emt 0:01:06]} 8. Qc2 {[%emt 0:00:16]} h6 {[%emt 0:01:22]} 9. Bf4 {[%emt 0:00:30]} Nf8 {[%emt 0:02:26]} 10. h3 {[%emt 0:00:41]} Ne6 {[%emt 0:01:15]} 11. Bh2 {[%emt 0:00:37]} O-O {[%emt 0:00:36]} 12. Nf3 {[%emt 0:03:40]} a6 {[%emt 0:01:59]} 13. Ne5 {[%emt 0:01:06]} c5 {[%emt 0:00:40]} 14. Nf3 {[%emt 0:09:34]} Bd7 {[%emt 0:01:19]} 15. a4 {[%emt 0:03:21]} ({White should play} 15. Be5 $14) 15... Rc8 {[%emt 0:01:08]} (15... c4 $15 16. Bf5 b5) 16. dxc5 {[%emt 0:07:48]} Nxc5 {[%emt 0:00:38]} 17. O-O {[%emt 0:01:22]} Nxd3 {[%emt 0:00:39]} 18. Qxd3 {[%emt 0:00:14]} Qa5 {[%emt 0:01:57]} 19. Be5 {[%emt 0:03:36]} Be6 {[%emt 0:01:47]} 20. Rfd1 {[%emt 0:05:50]} Rfd8 {[%emt 0:00:26]} 21. Nd4 {[%emt 0:10:14]} Bd7 {[%emt 0:01:16]} 22. Nf5 {[%emt 0:01:33]} (22. Bxf6 $16 Bxf6 23. Nb3 {[%mdl 64] Deflection}) 22... Bxf5 {[%emt 0:00:41]} 23. Qxf5 {[%emt 0:01:15]} Rc6 {[%emt 0:01:50]} 24. Rd4 {[%emt 0:03:55]} Re6 {[%emt 0:01:44]} 25. Rad1 {[%emt 0:07:26]} g6 {[%emt 0:03:00]} (25... Bc5 $14) 26. Qf4 {[%emt 0:01:43]} Rd7 {[%emt 0:02:54]} (26... Qc5 $16 27. e4 Nh5) 27. Bxf6 {[%emt 0:02:34]} Bxf6 {[%emt 0:01:59]} 28. b4 {[%emt 0:11:28]} Qc7 {[%emt 0:03:26]} 29. Qxc7 {[%emt 0:13:23]} ({Reject} 29. Nxd5 $6 Qxf4 30. Nxf4 (30. Rxf4 Kg7 $11) 30... Rxd4 31. Rxd4 (31. exd4 Re4 $11) 31... Bxd4 32. Nxe6 Bxe3 $11) 29... Rxc7 {[%emt 0:00:48]} 30. Nxd5 {[%emt 0:00:08]} Rc2 {[%emt 0:00:41]} 31. R4d2 {[%emt 0:03:00]} Rc4 {[%emt 0:01:00]} 32. Kf1 {[%emt 0:01:55]} Kg7 {[%emt 0:02:29]} 33. a5 {[%emt 0:00:25]} Rec6 {[%emt 0:01:30]} 34. Rb1 {[%emt 0:02:33]} Rd6 {[%emt 0:02:44]} 35. Rb3 {[%emt 0:03:52]} h5 {[%emt 0:01:44]} 36. Ke2 {[%emt 0:00:22]} g5 {[%emt 0:02:01]} 37. Nb6 {[%emt 0:00:53]} Rxd2+ {[%emt 0:01:30]} 38. Kxd2 {[%emt 0:00:01]} Rc6 {[%emt 0:00:51]} 39. b5 {[%emt 0:01:15]} Rc5 {[%emt 0:00:57]} 40. Na4 {[%emt 0:01:33]} Rd5+ {[%emt 0:01:07]} 41. Kc2 {[%emt 0:30:38]} axb5 {[%emt 0:30:48]} 42. Nb6 {[%emt 0:00:00]} Rc5+ {[%emt 0:00:00]} 43. Kd3 {[%emt 0:00:00]} Kg6 {[%emt 0:00:00]} 44. e4 {[%emt 0:00:00]} Bd8 {[%emt 0:00:00]} (44... Bh8 $11 {remains equal.}) 45. Nd7 {[%emt 0:00:00]} Rc1 {[%emt 0:00:00]} 46. Ne5+ {[%emt 0:00:00]} Kf6 {[%emt 0:00:00]} 47. Rxb5 {[%emt 0:00:00]} Bc7 {[%emt 0:02:29]} 48. Nd7+ {[%emt 0:00:00]} Kg6 {[%emt 0:00:00]} 49. Nc5 {[%emt 0:00:00]} Bxa5 {[%emt 0:00:00]} 50. Rxa5 {[%emt 0:00:00]} b6 {[%emt 0:00:00]} 51. Nb3 {[%emt 0:00:00]} Rg1 {[%emt 0:00:00]} 52. Rb5 {[%emt 0:00:00]} Rxg2 {[%emt 0:00:00]} 53. Rxb6+ {[%emt 0:00:00]} Kg7 {[%emt 0:00:00]} 54. Ke2 {[%emt 0:00:00]} Rh2 {[%emt 0:00:00]} 55. Nd4 {[%emt 0:00:00]} Rxh3 {[%emt 0:00:00]} 56. Nf5+ {[%emt 0:00:00]} Kh7 {[%emt 0:00:00]} 57. Rb7 {[%emt 0:00:00]} Kg6 {[%emt 0:00:00]} 58. Nd6 {[%emt 0:00:00]} g4 {[%emt 0:00:00]} (58... Kf6 $142 59. Nxf7 Ra3 60. e5+ Kg6) 59. Rxf7 {[%emt 0:00:00]} Ra3 {[%emt 0:00:00]} 60. Rc7 {[%emt 0:03:44]} h4 {[%emt 0:00:00]} 61. Rc1 $2 {[%emt 0:00:52]} (61. Nf5) 61... h3 {[%emt 0:00:00]} 62. Kf1 {[%emt 0:02:44]} Kf6 {[%emt 0:00:00]} 63. Re1 {[%emt 0:00:30]} Ke6 {[%emt 0:00:00]} 64. Nf5 {[%emt 0:00:34]} Ke5 {[%emt 0:00:00]} 65. Kg1 {[%emt 0:00:49]} Kf4 {[%emt 0:00:00]} 66. Nd4 {[%emt 0:00:57]} Ke5 {[%emt 0:00:00]} 67. Nc6+ {[%emt 0:00:08]} Kd6 {[%emt 0:00:37]} 68. Nd8 {[%emt 0:00:09]} Rf3 $2 {[%emt 0:01:21]} (68... Ke7 {was worth a try.} 69. Rd1 Rc3) 69. e5+ {[%emt 0:01:12]} Kd7 {[%emt 0:00:54]} 70. Nb7 {[%emt 0:01:00]} Rc3 {[%emt 0:00:46]} 71. e6+ {[%emt 0:00:13]} Ke7 {[%emt 0:01:03]} 72. Kh2 {[%emt 0:01:01]} (72. Nd6 $142 Rf3 73. Nc8+ Ke8 74. e7) 72... Rc6 {[%emt 0:00:56]} 73. Na5 {[%emt 0:00:45]} Rc2 {[%emt 0:01:27]} 74. Kg3 {[%emt 0:00:50]} Rc5 {[%emt 0:00:40]} 75. Nb3 {[%emt 0:01:46]} Rc3+ $18 {[%emt 0:01:10]} 76. Re3 $1 {[%emt 0:00:01]} ({Inferior is} 76. Kxg4 Rxb3 77. Rh1 Kxe6 $11) 76... Rc4 {[%emt 0:00:41]} 77. Nd2 $2 {[%emt 0:00:27]} (77. Kh2 $18 Rf4 78. Kg1) 77... Rc1 {[%emt 0:00:37]} 78. Kh2 {[%emt 0:00:33]} ({Not} 78. Kxg4 h2 79. Rh3 h1=Q 80. Rxh1 Rxh1 $11) 78... Rc2 {[%emt 0:00:42] [#]} 79. Re2 $2 {[%emt 0:00:49]} (79. Ne4 $1 $18) 79... Ra2 {[%emt 0:00:51]} 80. Kg3 {[%emt 0:00:32]} Ra4 {[%emt 0:01:08]} 81. Ne4 $2 {[%emt 0:01:40]} (81. Nf1 Ra1 82. Ne3) 81... Ra1 {[%emt 0:00:42]} 82. Kxg4 {[%emt 0:00:00]} h2 {[%emt 0:00:31]} 83. Ng3 {[%emt 0:00:31]} Rg1 {[%emt 0:00:28]} 84. Kh3 {[%emt 0:00:00]} Rxg3+ {[%emt 0:01:17]} 85. Kxh2 {[%emt 0:00:00]} Rg7 {[%emt 0:00:48]} 86. Kh3 {[%emt 0:00:00]} Rg1 {[%emt 0:00:41]} 87. Kh4 {[%emt 0:00:00]} Rg2 {[%emt 0:00:28]} 88. Kh3 {[%emt 0:00:03]} Rg8 {[%emt 0:00:29]} 89. f4 {[%emt 0:00:03]} Rg1 {[%emt 0:00:38]} 90. f5 {[%emt 0:00:18]} Rg8 {[%emt 0:00:34]} 91. Rg2 {[%emt 0:00:25]} Re8 {[%emt 0:01:03]} 92. Kg3 {[%emt 0:00:19]} Rg8+ {[%emt 0:00:44]} 93. Kf3 {[%emt 0:00:03]} Ra8 {[%emt 0:00:40]} 94. Kf4 {[%emt 0:00:11]} Ra4+ {[%emt 0:01:02]} 95. Kg5 {[%emt 0:00:18]} Ra8 {[%emt 0:00:37]} 96. Rh2 {[%emt 0:00:17]} Rg8+ {[%emt 0:00:46]} 97. Kf4 {[%emt 0:00:02]} Rg1 {[%emt 0:00:29]} 98. Rh7+ {[%emt 0:00:12]} Ke8 {[%emt 0:01:30]} 99. Ke5 {[%emt 0:00:08]} Kf8 {[%emt 0:00:44]} 100. Kf6 {[%emt 0:00:53]} Kg8 {[%emt 0:00:52]} 101. Ra7 {[%emt 0:00:06]} Re1 {[%emt 0:01:05]} 102. Ra8+ {[%emt 0:00:29]} Kh7 {[%emt 0:00:30]} 103. e7 {[%emt 0:00:11]} Re4 {[%emt 0:00:53]} 104. e8=Q {[%emt 0:00:47]} 1-0